Workbook

Sheet PART 1
B3: Secretaría de Educación Pública del Estado de Baja California Sur
B4: Dirección de Educación Secundaria
B5: NIVELES DE COMUNICACIÓN Y PARTICIPACIÓN DE ALUMNOS
B6: PRIMER GRADO
G8: PERIODO EVALUACIÓN: | R8: PRIMER PERIODO
G9: CICLO ESCOLAR : | R9: 2020 - 2021
A11: DIRECCIÓN: | G11: EDUCACIÓN SECUNDARIA
A12: DIRECTOR: | G12: PROFR. RUMUALDO RAMÍREZ GUITIÉRREZ
A15: COMUNICACIÓN Y PARTICIPACIÓN CON ALUMNOS (Registrar cantidad de alumnos)
A16: MODALIDAD | D16: EXISTENCIA (Alumnos inscritos) | G16: COMUNICACIÓN Y PARTICIPACIÓN SOSTENIDA | K16: % | O16: COMUNICACIÓN Y PARTICIPACIÓN INTERMITENTE | S16: % | W16: COMUNICACIÓN PRÁCTICAMENTE INEXISTENTE | AA16: % | AD16: TOTAL
D17: H | E17: M | F17: T
A18: Grales. | F18: =SUM(D18,E18) -> 0 | G18: 5473 | K18: =IFERROR(G18/AD18*100,"") -> 63.08933718 | O18: 2069 | S18: =IFERROR(O18/AD18*100,"") -> 23.85014409 | W18: 1133 | AA18: =IFERROR(W18/AD18*100,"") -> 13.06051873 | AD18: =SUM(G18,O18,W18) -> 8675
A19: Técs. | F19: =SUM(D19,E19) -> 0 | G19: 2936 | K19: =IFERROR(G19/AD19*100,"") -> 56.14840314 | O19: 1111 | S19: =IFERROR(O19/AD19*100,"") -> 21.24689233 | W19: 1182 | AA19: =IFERROR(W19/AD19*100,"") -> 22.60470453 | AD19: 5229
A20: Telesec. | F20: 0 | G20: 1320 | K20: 79.80652963 | O20: 257 | S20: 15.53808948 | W20: 77 | AA20: 4.655380895 | AD20: 1654
A21: TOTAL | D21: =SUM(D18:D20) -> 0 | E21: =SUM(E18:E20) -> 0 | F21: =SUM(F18:F20) -> 0 | G21: =SUM(G18:J20) -> 9729 | K21: 62.5337447 | O21: =SUM(O18:R20) -> 3437 | S21: 22.09152847 | W21: =SUM(W18:Z20) -> 2392 | AA21: 15.37472683 | AD21: =SUM(G21,O21,W21) -> 15558

Sheet Gráfica PART 1
B3: Secretaría de Educación Pública del Estado de Baja California Sur
B4: Dirección de Educación Secundaria
B5: PRIMER GRADO
B6: PERIODO EVALUACIÓN: | N6: ='PART 1'!R8 -> PRIMER PERIODO
B7: CICLO ESCOLAR : | N7: ='PART 1'!R9 -> 2020 - 2021
A9: DIRECCIÓN: | F9: ='PART 1'!G11 -> EDUCACIÓN SECUNDARIA
A10: DIRECTOR: | E10: ='PART 1'!G12 -> PROFR. RUMUALDO RAMÍREZ GUITIÉRREZ
D13: COMUNICACIÓN Y PARTICIPACIÓN SOSTENIDA | E13: COMUNICACIÓN Y PARTICIPACIÓN INTERMITENTE | F13: COMUNICACIÓN PRÁCTICAMENTE INEXISTENTE
D14: ='PART 1'!K21/100 -> 0.625337447 | E14: ='PART 1'!S21/100 -> 0.2209152847 | F14: ='PART 1'!AA21/100 -> 0.1537472683

Sheet PART 2
B3: Secretaría de Educación Pública del Estado de Baja California Sur
B4: Dirección de Educación Secundaria
B5: NIVELES DE COMUNICACIÓN Y PARTICIPACIÓN DE ALUMNOS
B6: SEGUNDO GRADO
G8: PERIODO EVALUACIÓN: | R8: ='PART 1'!R8 -> PRIMER PERIODO
G9: CICLO ESCOLAR : | R9: ='PART 1'!R9 -> 2020 - 2021
A11: DIRECCIÓN: | G11: ='PART 1'!G11 -> EDUCACIÓN SECUNDARIA
A12: DIRECTOR: | G12: ='Gráfica PART 1'!E10 -> PROFR. RUMUALDO RAMÍREZ GUITIÉRREZ
A15: COMUNICACIÓN Y PARTICIPACIÓN CON ALUMNOS (Registrar cantidad de alumnos)
A16: GRUPO | D16: EXISTENCIA (Alumnos inscritos) | G16: COMUNICACIÓN Y PARTICIPACIÓN SOSTENIDA | K16: % | O16: COMUNICACIÓN Y PARTICIPACIÓN INTERMITENTE | S16: % | W16: COMUNICACIÓN PRÁCTICAMENTE INEXISTENTE | AA16: % | AD16: TOTAL
D17: H | E17: M | F17: T
A18: Grales. | F18: =SUM(D18,E18) -> 0 | G18: 5040 | K18: =IFERROR(G18/AD18*100,"") -> 61.25425377 | O18: 2021 | S18: =IFERROR(O18/AD18*100,"") -> 24.56246962 | W18: 1167 | AA18: =IFERROR(W18/AD18*100,"") -> 14.18327662 | AD18: =SUM(G18,O18,W18) -> 8228
A19: Técs. | F19: =SUM(D19,E19) -> 0 | G19: 2680 | K19: =IFERROR(G19/AD19*100,"") -> 52.81828932 | O19: 1142 | S19: =IFERROR(O19/AD19*100,"") -> 22.50689791 | W19: 1252 | AA19: =IFERROR(W19/AD19*100,"") -> 24.67481277 | AD19: 5074
A20: Telesec. | F20: 0 | G20: 1368 | K20: 78.5755313 | O20: 297 | S20: 17.0591614 | W20: 76 | AA20: 4.365307295 | AD20: 1741
A21: TOTAL | D21: =SUM(D18:D20) -> 0 | E21: =SUM(E18:E20) -> 0 | F21: =SUM(F18:F20) -> 0 | G21: =SUM(G18:J20) -> 9088 | K21: 60.41348135 | O21: =SUM(O18:R20) -> 3460 | S21: 23.00073124 | W21: =SUM(W18:Z20) -> 2495 | AA21: 16.58578741 | AD21: =SUM(G21,O21,W21) -> 15043

Sheet Gráfica PART 2
B3: Secretaría de Educación Pública del Estado de Baja California Sur
B4: Dirección de Educación Secundaria
B5: SEGUNDO GRADO
B6: PERIODO EVALUACIÓN: | N6: ='PART 1'!R8 -> PRIMER PERIODO
B7: CICLO ESCOLAR : | N7: ='PART 1'!R9 -> 2020 - 2021
A9: DIRECCIÓN: | F9: ='PART 1'!G11 -> EDUCACIÓN SECUNDARIA
A10: DIRECTOR: | E10: ='PART 2'!G12 -> PROFR. RUMUALDO RAMÍREZ GUITIÉRREZ
D13: COMUNICACIÓN Y PARTICIPACIÓN SOSTENIDA | E13: COMUNICACIÓN Y PARTICIPACIÓN INTERMITENTE | F13: COMUNICACIÓN PRÁCTICAMENTE INEXISTENTE
D14: ='PART 2'!K21/100 -> 0.6041348135 | E14: ='PART 2'!S21/100 -> 0.2300073124 | F14: ='PART 2'!AA21/100 -> 0.1658578741

Sheet PART 3
B3: Secretaría de Educación Pública del Estado de Baja California Sur
B4: Dirección de Educación Secundaria
B5: NIVELES DE COMUNICACIÓN Y PARTICIPACIÓN DE ALUMNOS
B6: TERCER GRADO
G8: PERIODO EVALUACIÓN: | R8: ='PART 1'!R8 -> PRIMER PERIODO
G9: CICLO ESCOLAR : | R9: ='PART 1'!R9 -> 2020 - 2021
A11: DIRECCIÓN: | G11: ='PART 1'!G11 -> EDUCACIÓN SECUNDARIA
A12: DIRECTOR: | G12: ='Gráfica PART 2'!E10 -> PROFR. RUMUALDO RAMÍREZ GUITIÉRREZ
A15: COMUNICACIÓN Y PARTICIPACIÓN CON ALUMNOS (Registrar cantidad de alumnos)
A16: MODALIDAD | D16: EXISTENCIA (Alumnos inscritos) | G16: COMUNICACIÓN Y PARTICIPACIÓN SOSTENIDA | K16: % | O16: COMUNICACIÓN Y PARTICIPACIÓN INTERMITENTE | S16: % | W16: COMUNICACIÓN PRÁCTICAMENTE INEXISTENTE | AA16: % | AD16: TOTAL
D17: H | E17: M | F17: T
A18: Grales. | F18: =SUM(D18,E18) -> 0 | G18: 4839 | K18: =IFERROR(G18/AD18*100,"") -> 60.59353869 | O18: 1975 | S18: =IFERROR(O18/AD18*100,"") -> 24.73077886 | W18: 1172 | AA18: =IFERROR(W18/AD18*100,"") -> 14.67568244 | AD18: =SUM(G18,O18,W18) -> 7986
A19: Técs. | F19: =SUM(D19,E19) -> 0 | G19: 2566 | K19: =IFERROR(G19/AD19*100,"") -> 52.42083759 | O19: 1212 | S19: =IFERROR(O19/AD19*100,"") -> 24.75995914 | W19: 1117 | AA19: =IFERROR(W19/AD19*100,"") -> 22.81920327 | AD19: 4895
A20: Telesec. | F20: 0 | G20: 1157 | K20: 79.30089102 | O20: 256 | S20: 17.54626456 | W20: 46 | AA20: 3.152844414 | AD20: 1459
A21: TOTAL | D21: =SUM(D18:D20) -> 0 | E21: =SUM(E18:E20) -> 0 | F21: =SUM(F18:F20) -> 0 | G21: =SUM(G18:J20) -> 8562 | K21: 59.70711297 | O21: =SUM(O18:R20) -> 3443 | S21: 24.0097629 | W21: =SUM(W18:Z20) -> 2335 | AA21: 16.28312413 | AD21: =SUM(G21,O21,W21) -> 14340

Sheet Gráfica PART 3
B3: Secretaría de Educación Pública del Estado de Baja California Sur
B4: Dirección de Educación Secundaria
B5: TERCER GRADO
B6: PERIODO EVALUACIÓN: | N6: ='PART 1'!R8 -> PRIMER PERIODO
B7: CICLO ESCOLAR : | N7: ='PART 1'!R9 -> 2020 - 2021
A9: DIRECCIÓN: | F9: ='PART 1'!G11 -> EDUCACIÓN SECUNDARIA
A10: DIRECTOR: | E10: ='PART 3'!G12 -> PROFR. RUMUALDO RAMÍREZ GUITIÉRREZ
D13: COMUNICACIÓN Y PARTICIPACIÓN SOSTENIDA | E13: COMUNICACIÓN Y PARTICIPACIÓN INTERMITENTE | F13: COMUNICACIÓN PRÁCTICAMENTE INEXISTENTE
D14: ='PART 3'!K21/100 -> 0.5970711297 | E14: ='PART 3'!S21/100 -> 0.240097629 | F14: ='PART 3'!AA21/100 -> 0.1628312413
